fUSD/lending_fUSD_20240912
["ID","MTS","AMOUNT","RATE_DAILY","PERIOD"]
[337778057,1726109443853,-5939.26720196,0.00015,2]
[337778058,1726109443864,-12778.0653,0.00015,2]
[337778059,1726109443876,-2833.34930841,0.00015,2]
[337778060,1726109443888,-977.39069926,0.00015,2]
[337778061,1726109443899,-927.77,0.00015,2]
[337778062,1726109443910,-253.00000018,0.00015,2]
[337778063,1726109443922,-10234.25142647,0.00015,2]
[337778069,1726109446125,-267.52500889,0.00015,2]
[337778070,1726109446136,-1455.39500522,0.00015,2]
[337778071,1726109446147,-537.82486227,0.00015,2]
[337778072,1726109446159,-792.414,0.00015,2]
[337778074,1726109446450,-404.48230813,0.00015,2]
[337778075,1726109446461,-383.42963259,0.00015,2]
[337778076,1726109446473,-1861.594756,0.00015,2]
[337778077,1726109446484,-37578.97444894,0.00015,2]
[337778078,1726109446496,-425.205,0.00015,2]
[337778079,1726109446534,-6084.5,0.00015,2]
[337778080,1726109616838,280.6,0.00012,2]
[337778089,1726110537409,178.79,0.00011996,2]
[337778520,1726110592059,900.0,0.00012,2]
[337778541,1726110632535,-4661.480703,0.0001342,2]
[337778542,1726110632544,-269.85922584,0.00013488,2]
[337778543,1726110632554,-1145.0,0.00013899,2]
[337778544,1726110632563,-9309.0,0.00013899,2]
[337778545,1726110632572,-150.0,0.00013899,2]
[337778546,1726110632581,-5350.946,0.00013899,2]
[337778547,1726110632591,-250.0,0.00013902,2]
[337778548,1726110632600,-200.03,0.00013943,2]
[337778549,1726110632609,-200.0,0.00013978,2]
[337778550,1726110632619,-300.0,0.00013994,2]
[337778551,1726110632628,-6010.71467116,0.00013995,2]
[337778552,1726110632639,-2693.29304679,0.00013995,2]
[337778560,1726110638698,-559.12249875,0.00013995,2]
[337778680,1726110640268,-161.29,0.00013949,2]
[337778681,1726110640279,-920.9797833,0.00013995,2]
[337778682,1726110640289,-624.177,0.00013999,2]
[337778683,1726110640298,-1559.334,0.00013999,2]
[337778684,1726110640307,-1261.0,0.00013999,2]
[337778685,1726110640316,-448.591,0.00013999,2]
[337778686,1726110640325,-151.035,0.00013999,2]
[337778687,1726110640334,-264.086,0.00013999,2]
[337778688,1726110640343,-2160.7,0.00013999,2]
[337778689,1726110640352,-1921.0,0.00013999,2]
[337778690,1726110640362,-9967.80142398,0.00014,2]
[337778691,1726110640373,-6403.19857602,0.00014,2]
[337778692,1726110640382,-178.79,0.00014259,2]
[337778693,1726110640391,-537.63,0.00014378,2]
[337778695,1726110640400,-150.99,0.00014378,2]
[337778697,1726110640410,-263.22,0.00014653,2]
[337778699,1726110640419,-179.99,0.00014653,2]
[337778701,1726110640428,-160.933976,0.00014795,2]
[337778703,1726110640437,-3000.0,0.000148,2]
[337778705,1726110640447,-288.20623065,0.000148,2]
[337778707,1726110640456,-150.22219,0.0001485,2]
[337778709,1726110640465,-30340.3236,0.0001488,2]
[337778711,1726110640475,-405.113,0.0001489,2]
[337778713,1726110640484,-189.054,0.0001489,2]
[337778715,1726110640493,-963.07898604,0.00014892,2]
[337778717,1726110640503,-963.07898604,0.00014893,2]
[337778719,1726110640512,-963.07898604,0.00014894,2]
[337778721,1726110640522,-963.07898604,0.00014896,2]
[337778723,1726110640531,-963.07898604,0.00014897,2]
[337778725,1726110640540,-963.07898604,0.00014898,2]
[337778727,1726110640550,-963.07898604,0.00014899,2]
[337778729,1726110640559,-178.47357185,0.000149,2]
[337778731,1726110640570,-963.07898604,0.000149,2]
[337778733,1726110640579,-615.94236177,0.000149,2]
[337778735,1726110640589,-450.85896249,0.0001493,2]
[337778737,1726110640598,-503.57687918,0.00014973,2]
[337778739,1726110640607,-399.58647621,0.00014973,2]
[337778741,1726110640617,-450.44834442,0.0001498,2]
[337778743,1726110640626,-102180.595902,0.0001498,2]
[337778745,1726110640636,-295.57,0.0001498,2]
[337778747,1726110640645,-11353.3995446,0.00014983,2]
[337778749,1726110640655,-193007.792259,0.0001499,2]
[337778751,1726110640665,-93265.2977015,0.0001499,2]
[337778753,1726110640674,-17327.0421428,0.0001499,2]
[337778755,1726110640684,-13216.84219,0.0001499,2]
[337778757,1726110640693,-9106.6422373,0.0001499,2]
[337778759,1726110640703,-4996.4422845,0.0001499,2]
[337778761,1726110640712,-886.2423317,0.0001499,2]
[337778763,1726110640722,-247.7224052,0.0001499,2]
[337778765,1726110640731,-247.7224052,0.0001499,2]
[337778767,1726110640740,-247.7224052,0.0001499,2]
[337778769,1726110640750,-247.7224052,0.0001499,2]
[337778771,1726110640759,-247.7224052,0.0001499,2]
[337778772,1726110640768,-1676.2303518,0.0001499,2]
[337778774,1726110640778,-1676.2303518,0.0001499,2]
[337778776,1726110640787,-1676.2303518,0.0001499,2]
[337778778,1726110640796,-1676.2303518,0.0001499,2]
[337778780,1726110640805,-1676.2303518,0.0001499,2]
[337778782,1726110640815,-495.4448104,0.0001499,2]
[337778784,1726110640825,-495.4448104,0.0001499,2]
[337778786,1726110640834,-495.4448104,0.0001499,2]
[337778788,1726110640843,-495.4448104,0.0001499,2]
[337778790,1726110640853,-495.4448104,0.0001499,2]
[337778792,1726110640862,-7772.10814179,0.0001499,2]
[337778794,1726110640872,-21437.2420956,0.00014993,2]
[337778796,1726110640881,-247.7224052,0.00014993,2]
[337778798,1726110640890,-1676.2303518,0.00014993,2]
[337778800,1726110640899,-495.4448104,0.00014993,2]
[337778802,1726110640908,-168.0105035,0.00014999,2]
[337778804,1726110640918,-150.30737428,0.00014999,2]
[337778806,1726110640927,-590.0,0.00014999,2]
[337778808,1726110640936,-3077.23147872,0.00015,2]
[337778810,1726110640945,-621409.22224475,0.00015,2]
[337778812,1726110640954,-3677.08,0.00015,2]
[337778814,1726110640964,-6546439.59120793,0.00015,2]
[337778816,1726110640976,-422816.604425,0.00015,2]
[337779342,1726110718163,11509.0,0.000104,5]
[337779343,1726110718626,11509.0,0.000102,3]
[337779344,1726110718966,61758.0,0.0001,2]
[337779345,1726110884558,1050.0,0.00011,2]
[337779348,1726111083271,159.17,0.00010959,2]
[337779544,1726111805739,11509.0,0.000103,5]
[337779545,1726111805997,11509.0,0.000102,3]
[337779546,1726111806941,92186.0,0.0001,2]
[337779552,1726111832338,-160.91,0.00012135,2]
[337779553,1726111832348,-324.09,0.0001274,2]
[337779554,1726111832360,-170.66,0.0001299,2]
[337779555,1726111832369,-199.77257012,0.00012999,2]
[337779556,1726111832378,-413.04613556,0.00012999,2]
[337779557,1726111832389,-300.0,0.00012999,2]
[337779558,1726111832399,-150.0,0.00012999,2]
[337779559,1726111832409,-30564.79853415,0.00013,2]
[337779560,1726111832421,-396.64994585,0.00013,2]
[337779591,1726111840313,-717.87309908,0.00013,2]
[337779592,1726111840324,-292.2259866,0.00013,2]
[337780150,1726111847302,-332146.630764,0.00013,2]
[337780736,1726111975448,157.85,0.00010959,2]
[337780737,1726112435525,152.86,0.0001175,2]
[337780739,1726112687531,1050.0,0.00011,2]
[337780742,1726112759744,-259.272,0.0001274,2]
[337780743,1726112759764,-3000.0,0.0001287,2]
[337780744,1726112759785,-287.0276969,0.000129,2]
[337780745,1726112759808,-200.68788349,0.000129,2]
[337780746,1726112759828,-366.07600582,0.000129,2]
[337780747,1726112759849,-168.67,0.0001299,2]
[337780748,1726112759871,-341.36971315,0.00012999,2]
[337780749,1726112759891,-150.0,0.00012999,2]
[337780750,1726112762503,300.0,0.00012999,2]
[337780751,1726112776630,-960926.89670064,0.00013,2]
[337780811,1726112986425,-343.29563685,0.000129,2]
[337780812,1726112986449,-91.13216315,0.00012968,2]
[337780815,1726113032299,-408.86783685,0.00012968,2]
[337780816,1726113032308,-150.0,0.00012999,2]
[337780817,1726113032318,-300.0,0.00012999,2]
[337780818,1726113032328,-157525.82782631,0.00013,2]
[337780819,1726113032340,-860.97154633,0.00013,2]
[337780820,1726113032351,-504.69546904,0.00013,2]
[337780821,1726113032722,-59866.47268627,0.00013,2]
[337780822,1726113032731,-203.16,0.00013,2]
[337780823,1726113032740,-2461.84672761,0.00013,2]
[337780824,1726113032749,-200.0,0.00013,2]
[337780825,1726113032759,-2267.76148,0.00013,2]
[337780826,1726113032769,-200.0,0.00013,2]
[337780827,1726113032778,-2000.0,0.00013,2]
[337780828,1726113032788,-335.48,0.00013071,2]
[337780829,1726113032799,-585.98,0.00013092,2]
[337780830,1726113032810,-23900.0,0.00013114,2]
[337780831,1726113032821,-343.29563681,0.00013122,2]
[337780832,1726113032832,-200.0,0.0001313,2]
[337780833,1726113032842,-250.0,0.00013218,2]
[337780834,1726113032852,-963.04,0.00013221,2]
[337780835,1726113032862,-150.99,0.00013221,2]
[337780836,1726113032872,-343.29563681,0.00013344,2]
[337780837,1726113032885,-1000.0,0.00013381,2]
[337780838,1726113032895,-161.3,0.00013439,2]
[337780839,1726113032906,-150.0,0.00013488,2]
[337780840,1726113032916,-150.0,0.00013488,2]
[337780841,1726113032926,-532.61,0.000135,2]
[337780842,1726113032935,-343.29563681,0.00013567,2]
[337780843,1726113032945,-343.29563681,0.00013789,2]
[337780844,1726113032956,-131799.335521,0.0001389,2]
[337780845,1726113032966,-200.0,0.000139,5]
[337780846,1726113032975,-329.17987969,0.000139,2]
[337780847,1726113032986,-221.2839,0.00013973,2]
[337780848,1726113032995,-11981.7577746,0.0001399,2]
[337780849,1726113033005,-500.0,0.00014,2]
[337780850,1726113033015,-500.0,0.00014,2]
[337780851,1726113033025,-500.0,0.00014,2]
[337780852,1726113033034,-500.0,0.00014,2]
[337780853,1726113033044,-500.0,0.00014,2]
[337780854,1726113033054,-500.0,0.00014,2]
[337780855,1726113033063,-626.78,0.00014,2]
[337780856,1726113033072,-500.0,0.00014,2]
[337780857,1726113033082,-500.0,0.00014,2]
[337780858,1726113033091,-330.98,0.00014,2]
[337780859,1726113033101,-500.0,0.00014,2]
[337780860,1726113033110,-500.0,0.00014,2]
[337780861,1726113033119,-500.0,0.00014,2]
[337780862,1726113033129,-500.0,0.00014,2]
[337780863,1726113033138,-500.0,0.00014,2]
[337780864,1726113033148,-201.06,0.00014,2]
[337780865,1726113033157,-500.0,0.00014,2]
[337780866,1726113033166,-500.0,0.00014,2]
[337780867,1726113033176,-500.0,0.00014,2]
[337780868,1726113033185,-500.0,0.00014,2]
[337780869,1726113033195,-500.0,0.00014,2]
[337780870,1726113033204,-500.0,0.00014,2]
[337780871,1726113033213,-500.0,0.00014,2]
[337780872,1726113033226,-500.0,0.00014,2]
[337780873,1726113033235,-500.0,0.00014,2]
[337780874,1726113033245,-500.0,0.00014,2]
[337780875,1726113033254,-500.0,0.00014,2]
[337780876,1726113033263,-500.0,0.00014,2]
[337780877,1726113033273,-500.0,0.00014,2]
[337780878,1726113033282,-500.0,0.00014,2]
[337780879,1726113033292,-299.6,0.00014,2]
[337780880,1726113033302,-571.29,0.00014,2]
[337780881,1726113033311,-1000.0,0.00014,2]
[337780882,1726113033321,-1000.0,0.00014,2]
[337780883,1726113033330,-1000.0,0.00014,2]
[337780884,1726113033341,-1000.0,0.00014,2]
[337780885,1726113033350,-1000.0,0.00014,2]
[337780886,1726113033360,-1000.0,0.00014,2]
[337780887,1726113033370,-1000.0,0.00014,2]
[337780888,1726113033379,-1000.0,0.00014,2]
[337780889,1726113033389,-1000.0,0.00014,2]
[337780890,1726113033399,-1000.0,0.00014,2]
[337780891,1726113033408,-1000.0,0.00014,2]
[337780892,1726113033418,-1000.0,0.00014,2]
[337780893,1726113033427,-1000.0,0.00014,2]
[337780894,1726113033437,-1029.0,0.00014,2]
[337780895,1726113033447,-500.0,0.00014,5]
[337780896,1726113033456,-343.29563681,0.00014011,2]
[337780897,1726113033466,-152.86,0.00014014,2]
[337780898,1726113033476,-11981.7577746,0.0001409,2]
[337780899,1726113033486,-800.0,0.000141,5]
[337780900,1726113033495,-150.0,0.00014199,2]
[337780901,1726113033504,-150.0,0.00014199,2]
[337780902,1726113033514,-1000.0,0.000142,5]
[337780903,1726113033523,-343.29563681,0.00014233,2]
[337780904,1726113033533,-420.0,0.00014256,2]
[337780905,1726113033543,-1300.0,0.000143,5]
[337780906,1726113033553,-200.0,0.000144,5]
[337780907,1726113033562,-343.29563681,0.00014456,2]
[337780908,1726113033572,-200.0,0.000145,5]
[337780909,1726113033581,-158.22,0.00014505,2]
[337780910,1726113033591,-1064.99,0.00014575,2]
[337780911,1726113033600,-200.0,0.000146,5]
[337780912,1726113033611,-343.29563681,0.00014678,2]
[337780913,1726113033620,-200.0,0.000147,5]
[337780914,1726113033630,-335.48,0.00014705,2]
[337780915,1726113033640,-208.07261695,0.00014753,2]
[337780916,1726113033650,-3000.0,0.000148,2]
[337780917,1726113033659,-810.0,0.000148,5]
[337780918,1726113033669,-150.0,0.00014815,2]
[337780919,1726113033679,-150.0,0.00014833,2]
[337780920,1726113033689,-150.0,0.00014876,2]
[337780921,1726113033698,-11981.7577746,0.0001488,2]
[337780922,1726113033709,-1273.49002901,0.00014896,2]
[337780923,1726113033718,-461.15,0.00014898,2]
[337780924,1726113033728,-212.715,0.00014898,2]
[337780925,1726113033738,-2015.31623115,0.00014899,2]
[337780926,1726113033749,-153.6520114,0.000149,2]
[337780927,1726113033760,-343.29563681,0.000149,2]
[337780928,1726113033769,-150.0,0.00014907,2]
[337780929,1726113033780,-194.44630177,0.00014916,2]
[337780930,1726113033790,-150.0,0.00014923,2]
[337780931,1726113033799,-150.0,0.00014962,2]
[337780932,1726113033809,-631.99375687,0.00014973,2]
[337780933,1726113033819,-500.22147342,0.00014973,2]
[337780934,1726113033828,-500.0,0.00014973,2]
[337780935,1726113033838,-611.91180232,0.00014973,2]
[337780936,1726113033848,-166.97,0.00014976,2]
[337780937,1726113033858,-11981.7577746,0.0001498,2]
[337780938,1726113033868,-11981.7577746,0.0001498,2]
[337780939,1726113033879,-2127.0,0.00014986,2]
[337780940,1726113033889,-119817.577746,0.00014989,2]
[337780941,1726113033899,-3186.0346322,0.0001499,2]
[337780942,1726113033910,-3874.095281,0.0001499,2]
[337780943,1726113033920,-4562.1559297,0.0001499,2]
[337780944,1726113033930,-5250.2165785,0.0001499,2]
[337780945,1726113033940,-5938.2772272,0.0001499,2]
[337780946,1726113033950,-154503.46149269,0.0001499,2]
[337780947,1726113033960,-166.97,0.0001499,2]
[337780948,1726113033971,-166.97,0.0001499,2]
[337780949,1726113033982,-166.97,0.0001499,2]
[337780950,1726113033992,-166.97,0.0001499,2]
[337780951,1726113034003,-166.97,0.0001499,2]
[337780952,1726113034012,-166.97,0.0001499,2]
[337780953,1726113034024,-150.01,0.00014999,2]
[337780954,1726113034033,-565.0,0.00014999,2]
[337780955,1726113034043,-218837.86973117,0.00015,2]
[337780956,1726113034057,-11046.89,0.00015,2]
[337780957,1726113034081,-833.79793316,0.00015,2]
[337780958,1726113034093,-318.86689986,0.00015,2]
[337780959,1726113034185,-331.9629089,0.00015,2]
[337780960,1726113034274,-368.79004996,0.00015,2]
[337780961,1726113034565,-710.26876103,0.00015,2]
[337780962,1726113034641,-8403.01487636,0.00015,2]
[337780963,1726113034756,-5866.344349,0.00015,2]
[337780964,1726113034855,-800.07111468,0.00015,2]
[337780966,1726113038261,-2000.0,0.000135,2]
[337780967,1726113038272,-235.5362767,0.000149,2]
[337780968,1726113038282,-150.01,0.00014999,2]
[337780969,1726113038292,-558.79612632,0.00015,2]
[337780970,1726113038305,-9101.3781579,0.00015,2]
[337780971,1726113038317,-8693.51986952,0.00015,2]
[337780972,1726113038329,-1381.24087936,0.00015,2]
[337780973,1726113038341,-1291.67234278,0.00015,2]
[337780974,1726113038369,-31253.03540949,0.00015,2]
[337780975,1726113038381,-10907.09171289,0.00015,2]
[337780976,1726113038390,-448391.57234241,0.00015,2]
[337780977,1726113038419,-32860.96126329,0.00015,2]
[337780978,1726113038483,-136174.94095604,0.00015,2]
[337780979,1726113038499,-459.83958077,0.00015,2]
[337780980,1726113038516,-1370.23840371,0.00015,2]
[337780981,1726113038527,-452.76,0.00015,2]
[337781096,1726113040248,-503.0,0.00015,2]
[337781098,1726113040258,-3936.27591135,0.00015,2]
[337781109,1726113040364,-1101.53778636,0.00015,2]
[337781111,1726113040375,-292.315,0.00015,2]
[337781455,1726113044272,-481901.43351933,0.00015,2]
[337781460,1726113044314,-635.21123001,0.00015,2]
[337781464,1726113044337,-423.97074858,0.00015,2]
[337781596,1726113046366,-8087.63995788,0.000149,2]
[337781597,1726113046376,-3051.80589111,0.00015,2]
[337781598,1726113046672,-24389.60141702,0.00015,2]
[337781599,1726113623543,155.09,0.00010959,2]
[337781600,1726113662513,174.54,0.00011071,2]
[337781601,1726113721851,157.8,0.00011968,2]
[337781670,1726114222198,157.8,0.00011973,2]
[337781672,1726114232444,-150.0,0.00013488,2]
[337781673,1726114232454,-184.00526694,0.00013739,2]
[337781674,1726114232463,-3565.53,0.00013839,2]
[337781675,1726114232473,-301.73197839,0.00013847,2]
[337781676,1726114232499,-698.26802161,0.00013847,2]
[337781677,1726114232508,-47.04566605,0.00013847,2]
[337781678,1726114232519,-1033.09125361,0.00013847,2]
[337781679,1726114232531,-295.4294,0.00013847,2]
[337781680,1726114232607,-844.63596783,0.00013847,2]
[337781681,1726114232619,-1003.2257048,0.00013847,2]
[337781682,1726114232662,-828.1647695,0.00013847,2]
[337781683,1726114232672,-84.05666553,0.00013847,2]
[337781684,1726114232684,-165.94333447,0.00013847,2]
[337781685,1726114232693,-117.86666563,0.00013847,2]
[337781686,1726114238496,-857.54352911,0.00013847,2]
[337781687,1726114238516,-2764.89980526,0.00013847,2]
[337781688,1726114238525,-161.31,0.00013847,2]
[337781689,1726114238534,-173.89,0.00013871,2]
[337781690,1726114238543,-7178.90019474,0.00013873,2]
[337781814,1726114240353,-856.81314024,0.00013873,2]
[337781822,1726114240460,-10322.06075338,0.00013873,2]
[337781824,1726114240471,-4591.16591164,0.00013873,2]
[337781826,1726114240480,-166.45,0.00013891,2]
[337781828,1726114240490,-157.8,0.00014504,2]
[337781830,1726114240499,-150.0,0.00014754,2]
[337781832,1726114240509,-150.0,0.00014758,2]
[337781834,1726114240519,-150.0,0.00014792,2]
[337781836,1726114240528,-1500.0,0.000148,2]
[337781837,1726114240537,-150.0,0.000148,2]
[337781839,1726114240546,-150.0,0.00014816,2]
[337781841,1726114240556,-150.0,0.0001482,2]
[337781843,1726114240565,-150.0,0.00014827,2]
[337781845,1726114240575,-150.0,0.00014835,2]
[337781847,1726114240584,-150.0,0.00014842,2]
[337781849,1726114240593,-150.0,0.00014846,2]
[337781851,1726114240603,-1679.63079293,0.0001485,2]
[337781853,1726114240613,-150.0,0.00014863,2]
[337781855,1726114240622,-150.0,0.00014881,2]
[337781857,1726114240631,-150.0,0.00014882,2]
[337781859,1726114240641,-150.0,0.00014882,2]
[337781861,1726114240651,-150.0,0.00014884,2]
[337781863,1726114240660,-152.94727742,0.0001489,2]
[337781865,1726114240670,-169.5838256,0.0001489,2]
[337781867,1726114240680,-1979.5173,0.0001489,2]
[337781869,1726114240689,-5524.32932638,0.0001489,2]
[337781872,1726114240702,-809.13781232,0.0001489,2]
[337781874,1726114240714,-266.4360318,0.0001489,2]
[337781877,1726114240733,-894.87606755,0.0001489,2]
[337781885,1726114240794,-303.31716195,0.0001489,2]
[337781887,1726114240804,-152.94727738,0.00014893,2]
[337781889,1726114240814,-150.0,0.00014893,2]
[337781891,1726114240824,-152.94727738,0.00014895,2]
[337781893,1726114240833,-152.94727738,0.00014898,2]
[337781895,1726114240844,-150.0,0.00014898,2]
[337781897,1726114240853,-368.92,0.00014899,2]
[337781899,1726114240863,-212.716,0.00014899,2]
[337781901,1726114240872,-912.8774,0.000149,2]
[337781903,1726114240881,-8580.3595,0.000149,2]
[337781905,1726114240891,-150.0,0.000149,2]
[337781907,1726114240900,-150.0,0.000149,2]
[337781909,1726114240910,-150.0,0.000149,2]
[337781911,1726114240919,-150.0,0.000149,2]
[337781913,1726114240929,-418.85,0.000149,2]
[337781915,1726114240938,-152.94727738,0.000149,2]
[337781917,1726114240948,-150.0,0.00014902,2]
[337781919,1726114240957,-150.0,0.0001492,2]
[337781921,1726114240967,-150.0,0.00014926,2]
[337781923,1726114240976,-3698.29,0.00014948,2]
[337781925,1726114240985,-150.0,0.0001496,2]
[337781927,1726114240994,-150.0,0.00014975,2]
[337781929,1726114241004,-150.0,0.00014976,2]
[337781931,1726114241014,-290.43,0.0001498,3]
[337781933,1726114241024,-22626.00841853,0.0001498,2]
[337781937,1726114241048,-711.38661435,0.0001498,2]
[337782185,1726114243427,-5250.41849744,0.0001498,2]
[337782256,1726114244260,-36244.08152748,0.0001498,2]
[337782258,1726114244274,-156.72,0.0001498,2]
[337782260,1726114244283,-297.94255236,0.00014984,2]
[337782262,1726114244292,-19377.70485464,0.0001499,2]
[337782264,1726114244303,-279.92356222,0.0001499,2]
[337782268,1726114244337,-3932.95846468,0.0001499,2]
[337782271,1726114244349,-500.0,0.0001499,2]
[337783019,1726114344169,11509.0,0.000103,5]
[337783020,1726114344410,11509.0,0.000101,3]
[337783021,1726114344648,11897.0,0.0001,2]
[337783025,1726114772224,157.85,0.00010959,2]
[337783034,1726115198466,836.55,0.00010959,2]
[337783084,1726115318558,-200.0,0.0001251,2]
[337783086,1726115327578,157.8,0.00011744,2]
[337783113,1726115431505,-300.0,0.00012509,2]
[337783115,1726115431515,-59.16532702,0.0001251,2]
[337783116,1726115431527,-759.60244759,0.0001251,2]
[337783117,1726115431674,-3416.88,0.0001251,2]
[337783118,1726115431686,-4458.95684898,0.0001251,2]
[337783119,1726115431698,-1747.4016914,0.0001251,2]
[337783120,1726115431707,-2000.0,0.0001251,2]
[337783121,1726115431717,-1964.70597742,0.0001251,2]
[337783122,1726115431727,-604.737,0.000129,2]
[337783123,1726115431736,-6390.56964703,0.000129,2]
[337783125,1726115431766,-320.66312088,0.000129,2]
[337783126,1726115431777,-1914.03894294,0.000129,2]
[337783127,1726115431787,-1393.92736852,0.000129,2]
[337783128,1726115431803,-538.29120614,0.000129,2]
[337783130,1726115431818,-1200.0,0.000129,2]
[337783132,1726115431837,-2446.9131149,0.000129,2]
[337783133,1726115431846,-175.45759566,0.00013,2]
[337783422,1726115440973,-266.56,0.00013,2]
[337783424,1726115440984,-792.41694621,0.00013,2]
[337783426,1726115440995,-902.89078378,0.00013,2]
[337783428,1726115441007,-409.34500011,0.00013,2]
[337783439,1726115441098,-1945.41224453,0.00013,2]
[337783798,1726115445689,-442.94625551,0.00013,2]
[337783805,1726115445752,-1580.25000003,0.00013,2]
[337783846,1726115446148,-3054.32305495,0.00013,2]
[337784307,1726116013309,157.8,0.00011512,2]
[337784308,1726116037132,-150.0,0.00012999,2]
[337784309,1726116037159,-36440.3344,0.00013,2]
[337784310,1726116042071,-30000.0,0.00013,2]
[337784311,1726116042749,-30000.0,0.00013,2]
[337784312,1726116042997,-30000.0,0.00013,2]
[337784313,1726116049809,-20000.0,0.00013,2]
[337784314,1726116050290,-20000.0,0.00013,2]
[337784315,1726116060566,-25000.0,0.00013,2]
[337784316,1726116290826,1050.0,0.00011,2]
[337784325,1726116507976,-262.3056,0.000129,2]
[337784326,1726116507998,-150.0,0.00012999,2]
[337784327,1726116532346,157.8,0.00011604,2]
[337784333,1726116567157,374.82,0.0001331,30]
[337784348,1726116631672,-300.0,0.00012999,2]
[337784350,1726116631941,-1150.0,0.00013,2]
[337784351,1726116632005,-76088.29503136,0.00013,2]
[337784352,1726116632015,-200.0,0.00013,2]
[337784353,1726116632025,-3000.0,0.00013,2]
[337784354,1726116632035,-200.0,0.0001313,2]
[337784355,1726116632046,-822.953749,0.0001313,2]
[337784356,1726116632056,-150.0,0.00013425,2]
[337784357,1726116632065,-250.0,0.00013429,2]
[337784358,1726116632077,-794.98,0.0001344,2]
[337784359,1726116632088,-800.0,0.00013454,2]
[337784360,1726116632098,-266.84,0.00013455,2]
[337784361,1726116632108,-1185.47,0.0001346,2]
[337784362,1726116632117,-2158.3,0.0001346,2]
[337784363,1726116632126,-152.75,0.00013461,2]
[337784364,1726116632136,-2051.5,0.00013471,2]
[337784365,1726116632145,-3921.18608243,0.00013471,2]
[337784366,1726116632158,-1922.41615197,0.00013471,2]
[337784367,1726116632174,-528.39973584,0.00013471,2]
[337784368,1726116632300,-559.22802976,0.00013471,2]
[337784369,1726116632309,-1053.21,0.00013472,2]
[337784370,1726116632318,-651.58,0.00013473,2]
[337784371,1726116632328,-448.54852269,0.00013503,2]
[337784372,1726116632340,-287.25129197,0.00013503,2]
[337784373,1726116632352,-881.08675534,0.00013503,2]
[337784374,1726116632367,-5502.96343,0.00013503,2]
[337784375,1726116632377,-4868.41950521,0.00013522,2]
[337784376,1726116632401,-2100.0,0.00013522,2]
[337784377,1726116632413,-7019.9771,0.00013522,2]
[337784378,1726116632435,-397.7418011,0.00013522,2]
[337784379,1726116632447,-1029.07753147,0.00013522,2]
[337784380,1726116632458,-2727.3619961,0.00013522,2]
[337784381,1726116632470,-641.43342479,0.00013522,2]
[337784382,1726116632482,-5115.98864133,0.00013522,2]
[337784383,1726116632491,-200.0,0.00013731,2]
[337784384,1726116632500,-166.45,0.00013917,2]
[337784385,1726116632509,-3000.0,0.0001405,2]
[337784386,1726116632519,-21.29054665,0.00014192,2]
[337784387,1726116632530,-486.72945335,0.00014192,2]
[337784388,1726116632540,-161.39937286,0.00014256,2]
[337784389,1726116632559,-258.60062714,0.00014256,2]
[337784390,1726116632569,-1494.70006582,0.00014463,7]
[337784391,1726116637662,-5695.29993418,0.00014463,7]
[337784392,1726116637671,-2527.65260976,0.000145,2]
[337784393,1726116637770,-1472.34739024,0.000145,2]
[337784394,1726116637779,-1458.55260976,0.00014548,2]
[337784395,1726116637827,-2265.84739024,0.00014548,2]
[337784396,1726116637837,-3420.48724632,0.00014679,2]